[Event "*** Titled Tuesday 3|2 Blitz"]
[Site "Chess.com"]
[Date "2015.03.03"]
[Round "4"]
[White "zmaj23"]
[Black "GMHess"]
[Result "1-0"]
[WhiteElo "2332"]
[BlackElo "2453"]
[TimeControl "180+2"]
[EndTime "11:52:25 PST"]
[Termination "zmaj23 won by resignation"]

1. e4 {[%clk 0:03:00]} 1... e5 {[%clk 0:02:23.8]} 2. Nc3 {[%clk 0:02:59.8]} 2...
Nc6 {[%clk 0:02:24.6]} 3. Bc4 {[%clk 0:03:00.8]} 3... Nf6 {[%clk 0:02:25.6]} 4.
d3 {[%clk 0:03:02.2]} 4... Bb4 {[%clk 0:02:26.1]} 5. f4 {[%clk 0:02:54.6]} 5...
d5 {[%clk 0:02:22.7]} 6. exd5 {[%clk 0:02:31.1]} 6... Nxd5 {[%clk 0:02:24.6]} 7.
Bxd5 {[%clk 0:02:32.2]} 7... Qxd5 {[%clk 0:02:24.9]} 8. Nf3 {[%clk 0:02:32.8]}
8... Bg4 {[%clk 0:02:13.7]} 9. O-O {[%clk 0:02:29.4]} 9... Bxc3 {[%clk
0:02:00.7]} 10. bxc3 {[%clk 0:02:29.4]} 10... O-O {[%clk 0:01:45.8]} 11. Rb1
{[%clk 0:02:22.3]} 11... b6 {[%clk 0:01:32.6]} 12. c4 {[%clk 0:02:18.8]} 12...
Qc5+ {[%clk 0:01:17.2]} 13. Kh1 {[%clk 0:02:19.6]} 13... e4 {[%clk 0:01:14.2]}
14. Rb5 {[%clk 0:02:15.6]} 14... Qe7 {[%clk 0:00:46.1]} 15. dxe4 {[%clk
0:02:10.4]} 15... Rad8 {[%clk 0:00:41.9]} 16. Qe1 {[%clk 0:02:06.7]} 16... Bxf3
{[%clk 0:00:39.7]} 17. gxf3 {[%clk 0:01:59.2]} 17... Nd4 {[%clk 0:00:34.8]} 18.
Re5 {[%clk 0:01:57.2]} 18... Qf6 {[%clk 0:00:36]} 19. c3 {[%clk 0:01:54.5]}
19... Nc6 {[%clk 0:00:32.6]} 20. Rf5 {[%clk 0:01:55.8]} 20... Qe6 {[%clk
0:00:33.7]} 21. Rd5 {[%clk 0:01:53.5]} 21... Na5 {[%clk 0:00:32.2]} 22. Qh4
{[%clk 0:01:47.8]} 22... Rc8 {[%clk 0:00:25.4]} 23. f5 {[%clk 0:01:46.7]} 23...
Qc6 {[%clk 0:00:24.4]} 24. Rg1 {[%clk 0:01:29.4]} 24... g6 {[%clk 0:00:20.9]}
25. f6 {[%clk 0:01:25.8]} 25... Kh8 {[%clk 0:00:16.8]} 26. Bh6 {[%clk
0:01:25.9]} 26... Rg8 {[%clk 0:00:17.4]} 27. Bg7+ {[%clk 0:00:51.5]} 27... Rxg7
{[%clk 0:00:17.9]} 28. fxg7+ {[%clk 0:00:53.4]} 28... Kxg7 {[%clk 0:00:19.7]}
29. c5 {[%clk 0:00:50.6]} 29... Nc4 {[%clk 0:00:19.9]} 30. Qf2 {[%clk
0:00:47.8]} 30... b5 {[%clk 0:00:19.3]} 31. Qd4+ {[%clk 0:00:45.1]} 31... Qf6
{[%clk 0:00:20.1]} 32. f4 {[%clk 0:00:42]} 32... Qxd4 {[%clk 0:00:18.3]} 33.
cxd4 {[%clk 0:00:40.8]} 33... Kf6 {[%clk 0:00:17.7]} 34. Rd7 {[%clk 0:00:39]}
34... Ke6 {[%clk 0:00:18.4]} 35. c6 {[%clk 0:00:39.9]} 35... Nb6 {[%clk
0:00:19.3]} 36. d5+ {[%clk 0:00:38]} 36... Kf6 {[%clk 0:00:20.4]} 37. e5+ {[%clk
0:00:39.4]} 37... Kg7 {[%clk 0:00:21.2]} 38. e6 {[%clk 0:00:33]} 38... Rf8
{[%clk 0:00:20.6]} 39. e7 {[%clk 0:00:30.1]} 39... Re8 {[%clk 0:00:21.1]} 40.
Rxc7 {[%clk 0:00:19.7]} 40... Nxd5 {[%clk 0:00:21.2]} 41. Rd7 {[%clk 0:00:19.4]}
41... Nb6 {[%clk 0:00:16]} 42. Rxa7 {[%clk 0:00:18.7]} 42... Kf6 {[%clk
0:00:16.7]} 43. Re1 {[%clk 0:00:13.7]} 43... Nc8 {[%clk 0:00:18]} 44. Ra8 {[%clk
0:00:15]} 44... Nd6 {[%clk 0:00:18.3]} 45. Rxe8 {[%clk 0:00:15.4]} 45... Nxe8
{[%clk 0:00:20.2]} 46. Rb1 {[%clk 0:00:14.8]} 46... Kxe7 {[%clk 0:00:20.9]} 47.
Rxb5 {[%clk 0:00:14.4]} 47... Kd6 {[%clk 0:00:22.3]} 48. Rb7 {[%clk 0:00:11.8]}
48... Nc7 {[%clk 0:00:23.2]} 49. Rb8 {[%clk 0:00:12.9]} 49... Ne6 {[%clk
0:00:20.2]} 50. a4 {[%clk 0:00:10.9]} 50... Kxc6 {[%clk 0:00:20.9]} 51. a5
{[%clk 0:00:11.7]} 51... Kc7 {[%clk 0:00:22.2]} 52. Rh8 {[%clk 0:00:11]} 52...
h5 {[%clk 0:00:23.1]} 53. Rh7 {[%clk 0:00:10.7]} 53... Nd8 {[%clk 0:00:24.3]}
54. Rh8 {[%clk 0:00:10]} 54... Ne6 {[%clk 0:00:25]} 55. Rh7 {[%clk 0:00:10.9]}
55... Nd8 {[%clk 0:00:26]} 56. Kg2 {[%clk 0:00:12.6]} 56... Kc6 {[%clk
0:00:24.3]} 57. Kf3 {[%clk 0:00:13.9]} 57... Kb5 {[%clk 0:00:25.4]} 58. Rh8
{[%clk 0:00:15.4]} 58... Ne6 {[%clk 0:00:25.2]} 59. Ra8 {[%clk 0:00:15.7]} 59...
Nd4+ {[%clk 0:00:23.1]} 60. Ke4 {[%clk 0:00:15.8]} 60... Nc6 {[%clk 0:00:22]}
61. a6 {[%clk 0:00:16.1]} 61... Kb6 {[%clk 0:00:23]} 62. Rf8 {[%clk 0:00:12.8]}
62... f5+ {[%clk 0:00:22.9]} 63. Kd5 {[%clk 0:00:12.8]} 63... Nb4+ {[%clk
0:00:24.2]} 64. Kc4 {[%clk 0:00:13.4]} 64... Nxa6 {[%clk 0:00:21.5]} 65. Rf6+
{[%clk 0:00:14.9]} 65... Kb7 {[%clk 0:00:22.9]} 66. Rxg6 {[%clk 0:00:16.1]}
66... Nc7 {[%clk 0:00:24.8]} 67. Rg5 {[%clk 0:00:16]} 67... Ne6 {[%clk
0:00:25.7]} 68. Rxf5 {[%clk 0:00:17.6]} 68... Kc7 {[%clk 0:00:27.2]} 69. Kd5
{[%clk 0:00:18.2]} 69... Nd8 {[%clk 0:00:25]} 70. Rxh5 {[%clk 0:00:18.1]} 70...
Kd7 {[%clk 0:00:26.5]} 71. Rh7+ {[%clk 0:00:17.9]} 71... Ke8 {[%clk 0:00:27.7]}
72. f5 {[%clk 0:00:18.6]} 72... Nf7 {[%clk 0:00:28.4]} 73. h4 {[%clk 0:00:13.2]}
73... Ke7 {[%clk 0:00:28.6]} 74. h5 {[%clk 0:00:13.6]} 74... Kf6 {[%clk
0:00:30.1]} 75. Rxf7+ {[%clk 0:00:12.7]} 75... Kxf7 {[%clk 0:00:32]} 76. Ke5
{[%clk 0:00:13.9]} 76... Ke7 {[%clk 0:00:31.9]} 77. h6 {[%clk 0:00:14.3]} 77...
Kf7 {[%clk 0:00:33.8]} 78. h7 {[%clk 0:00:15.7]} 78... Kg7 {[%clk 0:00:34.9]}
79. Ke6 {[%clk 0:00:17.1]} 79... Kxh7 {[%clk 0:00:36.2]} 80. Ke7 {[%clk
0:00:18.6]} 80... Kg8 {[%clk 0:00:34.3]} 81. f6 {[%clk 0:00:19.6]} 81... Kh7
{[%clk 0:00:36.2]} 82. f7 {[%clk 0:00:21.5]} 1-0

[Event "*** Titled Tuesday 3|2 Blitz"]
[Site "Chess.com"]
[Date "2015.03.03"]
[Round "5"]
[White "FabianEnglert"]
[Black "Schemato"]
[Result "1-0"]
[WhiteElo "2238"]
[BlackElo "2073"]
[TimeControl "180+2"]
[EndTime "11:57:39 PST"]
[Termination "FabianEnglert won by resignation"]

1. Nf3 {[%clk 0:03:00]} 1... c5 {[%clk 0:02:54.8]} 2. c4 {[%clk 0:03:00.1]} 2...
g6 {[%clk 0:02:52.2]} 3. d4 {[%clk 0:03:00.6]} 3... cxd4 {[%clk 0:02:52.4]} 4.
Nxd4 {[%clk 0:03:02.5]} 4... Bg7 {[%clk 0:02:52.4]} 5. e4 {[%clk 0:03:03.5]}
5... Nc6 {[%clk 0:02:48.9]} 6. Be3 {[%clk 0:03:04.9]} 6... d6 {[%clk 0:02:46.2]}
7. Nc3 {[%clk 0:03:04.2]} 7... Nf6 {[%clk 0:02:45]} 8. Be2 {[%clk 0:03:04.9]}
8... O-O {[%clk 0:02:39.4]} 9. O-O {[%clk 0:03:05.9]} 9... Ng4 {[%clk 0:02:21]}
10. Bxg4 {[%clk 0:02:53.6]} 10... Bxg4 {[%clk 0:02:19.6]} 11. Nxc6 {[%clk
0:02:32.8]} 11... Bxd1 {[%clk 0:02:17.1]} 12. Nxd8 {[%clk 0:02:33.4]} 12... Bxc3
{[%clk 0:01:57.1]} 13. Raxd1 {[%clk 0:02:03.2]} 13... Rfxd8 {[%clk 0:01:52.9]}
14. bxc3 {[%clk 0:02:03.6]} 14... Rdc8 {[%clk 0:01:54]} 15. c5 {[%clk
0:02:00.4]} 15... dxc5 {[%clk 0:01:52.1]} 16. Rd7 {[%clk 0:02:01.1]} 16... b6
{[%clk 0:01:51.7]} 17. Rfd1 {[%clk 0:01:55.1]} 17... e6 {[%clk 0:01:42.8]} 18.
Bh6 {[%clk 0:01:50.3]} 18... b5 {[%clk 0:01:37.2]} 19. R1d3 {[%clk 0:01:42.2]}
19... b4 {[%clk 0:01:31.4]} 20. Rf3 {[%clk 0:01:40.7]} 20... bxc3 {[%clk
0:01:29.1]} 21. Rfxf7 {[%clk 0:01:36.5]} 21... Rab8 {[%clk 0:01:21]} 22. Rg7+
{[%clk 0:01:35.4]} 22... Kh8 {[%clk 0:01:21.2]} 23. Rxh7+ {[%clk 0:01:34.2]}
23... Kg8 {[%clk 0:01:22.4]} 24. Rdg7+ {[%clk 0:01:33.6]} 1-0

[Event "*** Titled Tuesday 3|2 Blitz"]
[Site "Chess.com"]
[Date "2015.03.03"]
[Round "5"]
[White "1stSecond"]
[Black "Rijeka1999"]
[Result "1-0"]
[WhiteElo "2366"]
[BlackElo "2243"]
[TimeControl "180+2"]
[EndTime "11:58:25 PST"]
[Termination "1stSecond won by resignation"]

1. d4 {[%clk 0:02:55.6]} 1... d5 {[%clk 0:02:58.6]} 2. Nf3 {[%clk 0:02:55.7]}
2... Nf6 {[%clk 0:02:59.2]} 3. c4 {[%clk 0:02:57.2]} 3... c6 {[%clk 0:02:59.4]}
4. Nc3 {[%clk 0:02:58.6]} 4... a6 {[%clk 0:02:59.8]} 5. c5 {[%clk 0:02:58.5]}
5... Bf5 {[%clk 0:02:59.5]} 6. Bf4 {[%clk 0:02:54.1]} 6... Nbd7 {[%clk
0:02:59.7]} 7. h3 {[%clk 0:02:54]} 7... h6 {[%clk 0:03:00.4]} 8. g4 {[%clk
0:02:54.6]} 8... Bh7 {[%clk 0:02:59.3]} 9. Bg2 {[%clk 0:02:54.7]} 9... e6 {[%clk
0:02:57.9]} 10. O-O {[%clk 0:02:55.4]} 10... Be7 {[%clk 0:02:57.7]} 11. b4
{[%clk 0:02:56.4]} 11... Ne4 {[%clk 0:02:57.7]} 12. Qb3 {[%clk 0:02:53.6]} 12...
O-O {[%clk 0:02:54.1]} 13. a4 {[%clk 0:02:51.6]} 13... b6 {[%clk 0:02:53.5]} 14.
Ne5 {[%clk 0:02:47.7]} 14... Nxe5 {[%clk 0:02:52]} 15. Nxe4 {[%clk 0:02:48.3]}
15... dxe4 {[%clk 0:02:51.3]} 16. Bxe5 {[%clk 0:02:45.4]} 16... a5 {[%clk
0:02:49.7]} 17. b5 {[%clk 0:02:43]} 17... bxc5 {[%clk 0:02:35.3]} 18. dxc5
{[%clk 0:02:44.9]} 18... cxb5 {[%clk 0:02:32.1]} 19. Rfd1 {[%clk 0:02:31.9]}
19... Qc8 {[%clk 0:02:12.8]} 20. axb5 {[%clk 0:02:22.1]} 20... Qxc5 {[%clk
0:02:09.5]} 21. Qb2 {[%clk 0:02:07.6]} 21... f6 {[%clk 0:02:05.7]} 22. Bd4
{[%clk 0:02:03.8]} 22... Qg5 {[%clk 0:01:45.7]} 23. b6 {[%clk 0:02:04.1]} 23...
f5 {[%clk 0:01:33.9]} 24. Qb3 {[%clk 0:02:00.5]} 24... Qg6 {[%clk 0:01:20.8]}
25. b7 {[%clk 0:02:01]} 25... Rab8 {[%clk 0:01:15.5]} 26. Be5 {[%clk 0:02:01]}
26... fxg4 {[%clk 0:01:15.9]} 27. Bxb8 {[%clk 0:02:00.4]} 27... Rxb8 {[%clk
0:01:14.4]} 28. hxg4 {[%clk 0:02:01.8]} 28... Qxg4 {[%clk 0:01:10.5]} 29. Rxa5
{[%clk 0:02:01.9]} 29... Qxe2 {[%clk 0:00:55.4]} 30. Ra8 {[%clk 0:02:01.8]}
30... Bd6 {[%clk 0:00:44.4]} 31. Rxd6 {[%clk 0:02:00.1]} 1-0

[Event "*** Titled Tuesday 3|2 Blitz"]
[Site "Chess.com"]
[Date "2015.03.03"]
[Round "5"]
[White "Mvpag"]
[Black "Colombiano07"]
[Result "1-0"]
[WhiteElo "1859"]
[BlackElo "1956"]
[TimeControl "180+2"]
[EndTime "11:59:15 PST"]
[Termination "Mvpag won by resignation"]

1. d4 {[%clk 0:03:00]} 1... d5 {[%clk 0:02:00.1]} 2. Nf3 {[%clk 0:02:55.9]} 2...
c6 {[%clk 0:02:00.7]} 3. e3 {[%clk 0:02:56.6]} 3... Bf5 {[%clk 0:02:00.8]} 4.
Bd3 {[%clk 0:02:58.1]} 4... Bxd3 {[%clk 0:02:01.5]} 5. cxd3 {[%clk 0:02:59.3]}
5... Nd7 {[%clk 0:02:01.6]} 6. O-O {[%clk 0:03:01]} 6... Ngf6 {[%clk 0:02:01.6]}
7. Nc3 {[%clk 0:03:02.6]} 7... e6 {[%clk 0:02:03]} 8. e4 {[%clk 0:03:00.5]} 8...
Be7 {[%clk 0:02:03.3]} 9. Qb3 {[%clk 0:03:00.3]} 9... Qb6 {[%clk 0:02:03.4]} 10.
Qc2 {[%clk 0:02:58.2]} 10... O-O {[%clk 0:01:59.9]} 11. Re1 {[%clk 0:02:57.5]}
11... Rac8 {[%clk 0:02:00.6]} 12. Bf4 {[%clk 0:02:57.8]} 12... c5 {[%clk
0:02:00.8]} 13. Na4 {[%clk 0:02:55.3]} 13... Qa5 {[%clk 0:02:01.2]} 14. dxc5
{[%clk 0:02:47.9]} 14... Nxc5 {[%clk 0:02:01.3]} 15. Nxc5 {[%clk 0:02:48.2]}
15... Qxc5 {[%clk 0:02:01.7]} 16. Qxc5 {[%clk 0:02:45]} 16... Rxc5 {[%clk
0:02:03.6]} 17. Be3 {[%clk 0:02:43.8]} 17... Rc2 {[%clk 0:02:03.3]} 18. b3
{[%clk 0:02:35]} 18... dxe4 {[%clk 0:02:02.2]} 19. dxe4 {[%clk 0:02:34]} 19...
Nxe4 {[%clk 0:02:04.1]} 20. Bxa7 {[%clk 0:02:33.5]} 20... Bc5 {[%clk 0:02:04.1]}
21. Bxc5 {[%clk 0:02:25.5]} 21... Nxc5 {[%clk 0:02:06]} 22. Rec1 {[%clk
0:02:24.8]} 22... Rxc1+ {[%clk 0:01:42]} 23. Rxc1 {[%clk 0:02:24.3]} 23... b6
{[%clk 0:01:43.4]} 24. Ne5 {[%clk 0:02:16.4]} 24... f6 {[%clk 0:01:42.3]} 25.
Nc4 {[%clk 0:02:11.6]} 25... Ra8 {[%clk 0:01:39.9]} 26. Rc2 {[%clk 0:02:08.5]}
26... Nxb3 {[%clk 0:01:39]} 27. Nxb6 {[%clk 0:02:01.7]} 27... Rd8 {[%clk
0:01:38.6]} 28. g3 {[%clk 0:01:59.9]} 28... Nd4 {[%clk 0:01:38.3]} 29. Rc7
{[%clk 0:01:58.1]} 29... e5 {[%clk 0:01:35.3]} 30. a4 {[%clk 0:01:56.9]} 30...
e4 {[%clk 0:01:36.5]} 31. a5 {[%clk 0:01:55.8]} 31... g5 {[%clk 0:01:34.7]} 32.
a6 {[%clk 0:01:55.6]} 32... Nf3+ {[%clk 0:01:32.6]} 33. Kg2 {[%clk 0:01:22.7]}
33... Ne1+ {[%clk 0:01:18.2]} 34. Kf1 {[%clk 0:01:17.1]} 34... Rd1 {[%clk
0:01:17.2]} 35. Ke2 {[%clk 0:01:13.1]} 35... Ra1 {[%clk 0:01:15.7]} 36. a7
{[%clk 0:01:13.8]} 36... Nd3 {[%clk 0:01:10]} 37. a8=Q+ {[%clk 0:01:08.8]} 1-0

[Event "*** Titled Tuesday 3|2 Blitz"]
[Site "Chess.com"]
[Date "2015.03.03"]
[Round "5"]
[White "Ar4uha"]
[Black "Irochka83"]
[Result "1-0"]
[WhiteElo "2463"]
[BlackElo "2279"]
[TimeControl "180+2"]
[EndTime "11:59:46 PST"]
[Termination "Ar4uha won by resignation"]

1. e4 {[%clk 0:03:00]} 1... e6 {[%clk 0:01:08.5]} 2. c4 {[%clk 0:02:59.3]} 2...
d5 {[%clk 0:01:07.5]} 3. exd5 {[%clk 0:03:00.5]} 3... exd5 {[%clk 0:01:08.4]} 4.
cxd5 {[%clk 0:03:01.9]} 4... Nf6 {[%clk 0:01:08.9]} 5. Bb5+ {[%clk 0:03:03]}
5... Bd7 {[%clk 0:01:08.9]} 6. Bc4 {[%clk 0:03:03.8]} 6... Be7 {[%clk
0:01:07.5]} 7. d4 {[%clk 0:03:04.4]} 7... O-O {[%clk 0:01:08.6]} 8. Nf3 {[%clk
0:03:05.8]} 8... Bg4 {[%clk 0:01:09.2]} 9. O-O {[%clk 0:03:06]} 9... Nbd7 {[%clk
0:01:10.2]} 10. Nc3 {[%clk 0:03:06.4]} 10... Nb6 {[%clk 0:01:11]} 11. Bb3 {[%clk
0:03:07.1]} 11... Nbxd5 {[%clk 0:01:11.5]} 12. h3 {[%clk 0:03:08.7]} 12... Bh5
{[%clk 0:01:11.6]} 13. g4 {[%clk 0:03:10]} 13... Bg6 {[%clk 0:01:08.8]} 14. Ne5
{[%clk 0:03:11.5]} 14... c6 {[%clk 0:00:56.7]} 15. Re1 {[%clk 0:03:07.1]} 15...
Re8 {[%clk 0:00:53.4]} 16. Qf3 {[%clk 0:03:07.5]} 16... Bf8 {[%clk 0:00:46.1]}
17. h4 {[%clk 0:03:06.5]} 17... h5 {[%clk 0:00:25.7]} 18. Bg5 {[%clk 0:03:03.8]}
18... hxg4 {[%clk 0:00:21.1]} 19. Nxg4 {[%clk 0:03:04.9]} 19... Qd6 {[%clk
0:00:18.8]} 20. Ne5 {[%clk 0:02:36]} 20... Bh5 {[%clk 0:00:17.5]} 21. Qg3 {[%clk
0:02:37.1]} 21... Re6 {[%clk 0:00:10.6]} 22. Bc2 {[%clk 0:02:23.6]} 22... Rae8
{[%clk 0:00:10]} 23. Bf5 {[%clk 0:02:23.6]} 23... R6e7 {[%clk 0:00:10.3]} 24.
Nxd5 {[%clk 0:02:22]} 24... cxd5 {[%clk 0:00:09.1]} 25. Re3 {[%clk 0:02:07]}
25... Rc7 {[%clk 0:00:10.1]} 26. Rae1 {[%clk 0:02:02.6]} 26... Ne4 {[%clk
0:00:11.3]} 27. Bxe4 {[%clk 0:01:56.6]} 27... dxe4 {[%clk 0:00:13.2]} 28. Rxe4
{[%clk 0:01:44.6]} 28... f6 {[%clk 0:00:14.5]} 29. Bf4 {[%clk 0:01:46.1]} 29...
Qd5 {[%clk 0:00:08.5]} 30. Ng4 {[%clk 0:01:17.4]} 30... Bxg4 {[%clk 0:00:04.7]}
31. Rxe8 {[%clk 0:01:17.2]} 31... Rc2 {[%clk 0:00:03.8]} 32. Qxg4 {[%clk
0:01:17.2]} 1-0

[Event "*** Titled Tuesday 3|2 Blitz"]
[Site "Chess.com"]
[Date "2015.03.03"]
[Round "5"]
[White "Fandorine"]
[Black "IMRosen"]
[Result "1-0"]
[WhiteElo "2579"]
[BlackElo "2117"]
[TimeControl "180+2"]
[EndTime "11:59:52 PST"]
[Termination "Fandorine won on time"]

1. e4 {[%clk 0:02:59.4]} 1... c5 {[%clk 0:02:59]} 2. Nf3 {[%clk 0:02:59.6]} 2...
e6 {[%clk 0:03:00.4]} 3. c3 {[%clk 0:02:59.9]} 3... d5 {[%clk 0:03:00.4]} 4.
exd5 {[%clk 0:03:00.8]} 4... Qxd5 {[%clk 0:03:02.3]} 5. d4 {[%clk 0:03:01.3]}
5... Nf6 {[%clk 0:03:04]} 6. Na3 {[%clk 0:03:02.4]} 6... Qd8 {[%clk 0:03:04.6]}
7. Nc2 {[%clk 0:02:57.9]} 7... Nc6 {[%clk 0:03:05.2]} 8. Be2 {[%clk 0:02:59]}
8... cxd4 {[%clk 0:03:05.6]} 9. Ncxd4 {[%clk 0:02:58.9]} 9... Nxd4 {[%clk
0:03:06.2]} 10. Qxd4 {[%clk 0:03:00.6]} 10... Qxd4 {[%clk 0:03:02.4]} 11. Nxd4
{[%clk 0:03:01.8]} 11... Bd7 {[%clk 0:03:04]} 12. Bf4 {[%clk 0:02:58.6]} 12...
O-O-O {[%clk 0:02:57.4]} 13. O-O-O {[%clk 0:02:53.8]} 13... Nd5 {[%clk
0:02:53.9]} 14. Bg3 {[%clk 0:02:49.8]} 14... Bc5 {[%clk 0:02:53.5]} 15. Rhe1
{[%clk 0:02:49.7]} 15... Rhe8 {[%clk 0:02:50.3]} 16. Bh5 {[%clk 0:02:50.1]}
16... Re7 {[%clk 0:02:33]} 17. Nb3 {[%clk 0:02:45.5]} 17... Nf6 {[%clk
0:01:23.3]} 18. Bxf7 {[%clk 0:02:20.4]} 18... Bxf2 {[%clk 0:01:16.6]} 19. Bxf2
{[%clk 0:02:21.5]} 19... Rxf7 {[%clk 0:01:14.3]} 20. Bxa7 {[%clk 0:02:23.1]}
20... Bc6 {[%clk 0:01:07.5]} 21. Rxd8+ {[%clk 0:02:15.4]} 21... Kxd8 {[%clk
0:01:09.4]} 22. Re2 {[%clk 0:01:56.6]} 22... Bd5 {[%clk 0:00:46.5]} 23. Bd4
{[%clk 0:01:48.9]} 23... Ne4 {[%clk 0:00:35.4]} 24. c4 {[%clk 0:01:34.1]} 24...
Bc6 {[%clk 0:00:31.2]} 25. Na5 {[%clk 0:01:35]} 25... Rf1+ {[%clk 0:00:18.5]}
26. Kc2 {[%clk 0:01:35.6]} 26... Nd6 {[%clk 0:00:06.4]} 27. Nxc6+ {[%clk
0:01:31.6]} 27... bxc6 {[%clk 0:00:08.3]} 28. b3 {[%clk 0:01:32.9]} 28... Nf5
{[%clk 0:00:06.6]} 29. Be5 {[%clk 0:01:30.4]} 29... Kd7 {[%clk 0:00:07.3]} 30.
Rd2+ {[%clk 0:01:29.2]} 30... Kc8 {[%clk 0:00:07.9]} 31. a4 {[%clk 0:01:29.1]}
31... g5 {[%clk 0:00:08]} 32. a5 {[%clk 0:01:29]} 32... Kb7 {[%clk 0:00:05]} 33.
b4 {[%clk 0:01:24.1]} 1-0

[Event "*** Titled Tuesday 3|2 Blitz"]
[Site "Chess.com"]
[Date "2015.03.03"]
[Round "5"]
[White "Polemistis"]
[Black "michaelk123"]
[Result "0-1"]
[WhiteElo "1140"]
[BlackElo "1920"]
[TimeControl "180+2"]
[EndTime "12:00:15 PST"]
[Termination "michaelk123 won by resignation"]

1. d4 {[%clk 0:02:26.6]} 1... Nf6 {[%clk 0:02:56.7]} 2. c4 {[%clk 0:02:27.5]}
2... g6 {[%clk 0:02:57.7]} 3. Nc3 {[%clk 0:02:28.7]} 3... d5 {[%clk 0:02:59]} 4.
cxd5 {[%clk 0:02:29.5]} 4... Nxd5 {[%clk 0:03:00.3]} 5. e4 {[%clk 0:02:31.1]}
5... Nxc3 {[%clk 0:03:01.5]} 6. bxc3 {[%clk 0:02:33]} 6... Bg7 {[%clk
0:03:03.2]} 7. Bg5 {[%clk 0:02:34.7]} 7... c5 {[%clk 0:03:02.6]} 8. Rc1 {[%clk
0:02:36.6]} 8... O-O {[%clk 0:02:55.4]} 9. Nf3 {[%clk 0:02:37]} 9... b6 {[%clk
0:02:46.6]} 10. Be2 {[%clk 0:02:12]} 10... Bb7 {[%clk 0:02:47.3]} 11. d5 {[%clk
0:02:13]} 11... Qd7 {[%clk 0:02:44.6]} 12. O-O {[%clk 0:02:13.4]} 12... f5
{[%clk 0:02:25.8]} 13. e5 {[%clk 0:01:40]} 13... Qxd5 {[%clk 0:02:18.9]} 14.
Bxe7 {[%clk 0:01:37.7]} 14... Re8 {[%clk 0:02:16.5]} 15. Bd6 {[%clk 0:01:36]}
15... Nd7 {[%clk 0:02:10.6]} 16. Bb5 {[%clk 0:01:33.9]} 16... Nxe5 {[%clk
0:01:36.7]} 17. Bxe5 {[%clk 0:01:20.5]} 17... Rxe5 {[%clk 0:01:33.3]} 18. Bc4
{[%clk 0:01:12.5]} 18... Qxc4 {[%clk 0:01:31.1]} 19. Nxe5 {[%clk 0:01:13.6]}
19... Bxe5 {[%clk 0:01:31.6]} 20. Re1 {[%clk 0:01:13.9]} 20... Bf6 {[%clk
0:01:26.3]} 21. Qd7 {[%clk 0:01:11.4]} 21... Qd5 {[%clk 0:01:25.4]} 22. Re8+
{[%clk 0:01:08.9]} 22... Rxe8 {[%clk 0:01:21.1]} 23. Qxe8+ {[%clk 0:01:09.9]}
23... Kg7 {[%clk 0:01:22.8]} 24. f3 {[%clk 0:01:08.2]} 24... Bc6 {[%clk
0:01:13.7]} 25. Qc8 {[%clk 0:00:59.6]} 25... Qd2 {[%clk 0:00:43.6]} 26. Qc7+
{[%clk 0:00:59.1]} 26... Bd7 {[%clk 0:00:38.8]} 27. Rf1 {[%clk 0:00:57.2]} 27...
Bxc3 {[%clk 0:00:38.4]} 28. Qd8 {[%clk 0:00:51.8]} 28... Bf6 {[%clk 0:00:35]}
29. Qc7 {[%clk 0:00:51.5]} 29... Kh6 {[%clk 0:00:34.3]} 30. Qb8 {[%clk
0:00:46.4]} 30... Bb5 {[%clk 0:00:28.7]} 31. Qf8+ {[%clk 0:00:43]} 31... Bg7
{[%clk 0:00:29.3]} 32. Qe7 {[%clk 0:00:43.7]} 32... Qd4+ {[%clk 0:00:27.3]} 33.
Rf2 {[%clk 0:00:41.4]} 33... Qa1+ {[%clk 0:00:26.6]} 0-1